[Event "32nd Panamerican Youth 2022"]
[Site "Montevideo"]
[Date "2022.06.26"]
[Round "1.4"]
[White "Oro, Faustino"]
[Black "Torales G., Ivan Alejandro B."]
[Result "1-0"]
[ECO "B09"]
[WhiteElo "2008"]
[BlackElo "1164"]
[Annotator "RC"]
[PlyCount "87"]
[EventDate "2022.06.26"]
[EventType "swiss"]
[EventCountry "URU"]
[SourceTitle "playchess.com"]
[Source "ChessBase"]
[SourceQuality "1"]
[TimeControl "5400+30"]

1. e4 {[%emt 0:00:03]} d6 {[%emt 0:00:08]} 2. d4 {[%emt 0:00:08]} g6 {[%emt 0:00:07]} 3. Nc3 {[%emt 0:00:08]} Nf6 {[%emt 0:00:05]} 4. f4 {[%emt 0:00:28]} Bg7 {[%emt 0:00:08]} 5. Nf3 {[%emt 0:00:12]} O-O {[%emt 0:00:10]} 6. Bd3 {[%emt 0:00:11]} Nc6 {[%emt 0:00:43]} 7. O-O {[%emt 0:00:22]} Bg4 {[%emt 0:00:25]} 8. Be3 {[%emt 0:00:48]} e5 {[%emt 0:02:40]} 9. d5 {[%emt 0:00:49]} Nb8 {[%emt 0:01:41]} 10. fxe5 {[%emt 0:00:51]} dxe5 {[%emt 0:00:07]} 11. h3 {[%emt 0:00:20]} Bxf3 {[%emt 0:00:58]} 12. Qxf3 {[%emt 0:00:53]} Nbd7 {[%emt 0:01:43]} 13. Ne2 {[%emt 0:01:02]} Qe7 {[%emt 0:01:19]} 14. c4 {[%emt 0:00:44]} Nc5 {[%emt 0:04:13]} 15. Bc2 {[%emt 0:00:42]} Rad8 16. b4 {[%emt 0:00:59]} Ncd7 {[%emt 0:02:29]} 17. c5 {[%emt 0:00:50]} Rfe8 {[%emt 0:05:25]} 18. c6 {[%emt 0:04:05]} bxc6 {[%emt 0:00:07]} 19. dxc6 {[%emt 0:00:07]} Nb6 {[%emt 0:00:41]} 20. Bg5 {[%emt 0:03:53]} Rd6 {[%emt 0:00:43]} 21. b5 {[%emt 0:01:46]} h6 {[%emt 0:00:40]} 22. Bh4 {[%emt 0:00:23]} Re6 {[%emt 0:01:12]} 23. Bb3 {[%emt 0:01:01]} Rd6 {[%emt 0:00:14]} 24. a4 {[%emt 0:00:39]} Red8 {[%emt 0:01:18]} 25. Nc1 {[%emt 0:05:34]} g5 {[%emt 0:00:46]} 26. Bf2 {[%emt 0:00:36]} Qe8 {[%emt 0:03:21]} 27. Ra2 {[%emt 0:02:43]} h5 {[%emt 0:02:23]} 28. Qf5 {[%emt 0:00:36]} Nh7 {[%emt 0:01:39]} 29. Bxf7+ {[%emt 0:00:36]} Qxf7 {[%emt 0:00:14]} 30. Qxf7+ {[%emt 0:00:04]} Kxf7 {[%emt 0:00:10]} 31. Bxb6+ {[%emt 0:00:06]} Nf6 {[%emt 0:00:12]} 32. Bxc7 {[%emt 0:00:05]} Rd4 {[%emt 0:00:32]} 33. Bxd8 {[%emt 0:00:13]} Rxd8 {[%emt 0:00:03]} 34. Nb3 {[%emt 0:00:21]} Bf8 {[%emt 0:00:12]} 35. a5 {[%emt 0:00:45]} Rb8 {[%emt 0:00:06]} 36. c7 {[%emt 0:00:07]} Rc8 {[%emt 0:00:04]} 37. b6 {[%emt 0:00:10]} axb6 {[%emt 0:00:15]} 38. axb6 {[%emt 0:00:07]} Ke6 {[%emt 0:00:19]} 39. b7 {[%emt 0:00:07]} Rxc7 {[%emt 0:00:04]} 40. b8=Q {[%emt 0:00:09]} Rc3 {[%emt 0:00:02]} 41. Ra6+ {[%emt 0:00:13]} Kf7 {[%emt 0:00:09]} 42. Raxf6+ {[%emt 0:00:10]} Kg7 {[%emt 0:00:08]} 43. Qxf8+ {[%emt 0:00:07]} Kh7 {[%emt 0:00:11]} 44. Rh6# {[%emt 0:00:07]} 1-0

[Event "32nd Panamerican Youth 2022"]
[Site "Montevideo"]
[Date "2022.06.26"]
[Round "1.5"]
[White "Su, Jasmine Zhixin"]
[Black "Reyes Perez, Aracelly"]
[Result "1-0"]
[ECO "B01"]
[WhiteElo "1984"]
[BlackElo "1238"]
[Annotator "RC"]
[PlyCount "91"]
[EventDate "2022.06.26"]
[EventType "swiss"]
[EventCountry "URU"]
[SourceTitle "playchess.com"]
[Source "ChessBase"]
[SourceQuality "1"]
[TimeControl "5400+30"]

1. e4 {[%emt 0:00:01]} d5 {[%emt 0:16:09]} 2. exd5 {[%emt 0:00:03]} Nf6 {[%emt 0:01:04]} 3. d4 {[%emt 0:00:02]} Nxd5 {[%emt 0:01:13]} 4. c4 {[%emt 0:00:07]} Nf6 {[%emt 0:05:21]} 5. Nc3 {[%emt 0:00:07]} Bf5 {[%emt 0:07:21]} 6. Nf3 {[%emt 0:00:19]} e6 {[%emt 0:04:04]} 7. h3 {[%emt 0:00:48]} Nc6 {[%emt 0:04:50]} 8. Be3 {[%emt 0:01:11]} Be7 {[%emt 0:17:18]} 9. Be2 {[%emt 0:00:29]} O-O {[%emt 0:02:15]} 10. O-O {[%emt 0:00:10]} h6 {[%emt 0:04:07]} 11. Rc1 {[%emt 0:06:50]} Rc8 {[%emt 0:03:45]} 12. a3 {[%emt 0:02:45]} Ne4 {[%emt 0:03:04]} 13. Bd3 {[%emt 0:06:47]} Nxc3 {[%emt 0:01:22]} 14. Rxc3 {[%emt 0:00:07]} Bf6 {[%emt 0:08:04]} 15. Bxf5 {[%emt 0:03:18]} exf5 {[%emt 0:00:11]} 16. Rd3 {[%emt 0:00:17]} Ne7 {[%emt 0:04:58]} 17. Qc2 {[%emt 0:02:24]} c6 {[%emt 0:01:30]} 18. Rfd1 {[%emt 0:00:42]} Qc7 {[%emt 0:01:54]} 19. Bd2 {[%emt 0:04:03]} Rfd8 {[%emt 0:03:34]} 20. Bb4 {[%emt 0:00:47]} Ng6 {[%emt 0:02:12]} 21. Bc3 {[%emt 0:03:58]} Ne7 {[%emt 0:01:02]} 22. Re3 {[%emt 0:01:57]} b6 {[%emt 0:02:44]} 23. Ne5 {[%emt 0:02:13]} Bxe5 {[%emt 0:00:15]} 24. Rxe5 {[%emt 0:00:12]} Rd7 {[%emt 0:01:14]} 25. Rde1 {[%emt 0:01:00]} f4 {[%emt 0:01:24]} 26. Qe2 {[%emt 0:02:01]} Ng6 {[%emt 0:00:39]} 27. Re4 {[%emt 0:00:26]} Rcd8 {[%emt 0:00:41]} 28. Qg4 {[%emt 0:03:12]} Rf8 {[%emt 0:01:00]} 29. R4e2 {[%emt 0:01:26]} Kh7 {[%emt 0:00:19]} 30. Kh1 {[%emt 0:05:57]} f5 {[%emt 0:00:17]} 31. Qh5 {[%emt 0:01:09]} Rd6 {[%emt 0:00:52]} 32. d5 {[%emt 0:01:41]} cxd5 {[%emt 0:00:20]} 33. Bb4 {[%emt 0:00:09]} Rff6 {[%emt 0:00:33]} 34. Bxd6 {[%emt 0:00:48]} Qxd6 {[%emt 0:00:07]} 35. Rd2 {[%emt 0:00:32]} Qc5 {[%emt 0:00:44]} 36. cxd5 {[%emt 0:00:46]} Qa5 {[%emt 0:00:57]} 37. Qd1 {[%emt 0:00:42]} Nh4 {[%emt 0:00:30]} 38. d6 {[%emt 0:00:33]} b5 {[%emt 0:00:52]} 39. d7 {[%emt 0:00:39]} Rg6 {[%emt 0:00:18]} 40. d8=Q {[%emt 0:00:23]} Qxd8 {[%emt 0:00:26]} 41. Rxd8 {[%emt 0:00:05]} Rxg2 {[%emt 0:00:09]} 42. Qh5 {[%emt 0:00:26]} Rxf2 {[%emt 0:00:43]} 43. Qxh4 {[%emt 0:00:06]} Rxb2 {[%emt 0:00:07]} 44. Qxf4 {[%emt 0:00:06]} Rb3 {[%emt 0:00:47]} 45. Qxf5+ {[%emt 0:01:03]} g6 {[%emt 0:00:08]} 46. Re7# {[%emt 0:00:09]} 1-0

[Event "32nd Panamerican Youth 2022"]
[Site "Montevideo"]
[Date "2022.06.26"]
[Round "1.6"]
[White "Rojo Lynch, Candela"]
[Black "Vidyarthi, Omya"]
[Result "0-1"]
[ECO "C26"]
[WhiteElo "1256"]
[BlackElo "1872"]
[Annotator "NA RC"]
[PlyCount "50"]
[EventDate "2022.06.26"]
[EventType "swiss"]
[EventCountry "URU"]
[SourceTitle "playchess.com"]
[Source "ChessBase"]
[SourceQuality "1"]
[TimeControl "5400+30"]

1. e4 {[%emt 0:00:02]} e5 {[%emt 0:00:06]} 2. Nc3 {[%emt 0:00:05]} Nf6 {[%emt 0:00:15]} 3. Bc4 {[%emt 0:00:05]} Bc5 {[%emt 0:01:38]} 4. f4 {[%emt 0:00:20]} d6 {[%emt 0:00:24]} 5. Nf3 {[%emt 0:00:32]} Nc6 {[%emt 0:01:26]} 6. d3 {[%emt 0:00:25]} a6 {[%emt 0:00:53]} 7. fxe5 {[%emt 0:06:36]} dxe5 {[%emt 0:00:34]} 8. Bg5 {[%emt 0:03:07]} h6 {[%emt 0:02:05]} 9. Bh4 {[%emt 0:00:59]} Qd6 10. Qd2 {[%emt 0:07:28]} Bg4 {[%emt 0:15:53]} 11. h3 {[%emt 0:02:04]} Bxf3 {[%emt 0:01:48]} 12. gxf3 {[%emt 0:00:20]} Nd4 {[%emt 0:00:12]} 13. O-O-O {[%emt 0:00:46]} Nxf3 {[%emt 0:00:31]} 14. Qg2 {[%emt 0:08:15]} Nxh4 {[%emt 0:00:32]} 15. Qg3 {[%emt 0:01:38]} Ng6 {[%emt 0:00:55]} 16. Rh2 {[%emt 0:03:25]} Qe7 {[%emt 0:02:36]} 17. Rf1 {[%emt 0:11:42]} O-O-O {[%emt 0:01:26]} 18. Rf3 {[%emt 0:13:38]} Kb8 {[%emt 0:02:49]} 19. d4 {[%emt 0:15:41]} exd4 {[%emt 0:02:00]} 20. Nb5 {[%emt 0:00:21]} axb5 $19 {[%emt 0:00:23]} 21. Bxb5 {[%emt 0:00:27]} Bd6 {[%emt 0:02:04]} 22. Qe1 {[%emt 0:00:15]} Qxe4 {[%emt 0:00:18]} 23. Qa5 {[%emt 0:04:06]} Qxf3 {[%emt 0:00:09]} 24. Rd2 {[%emt 0:00:19]} Qh1+ {[%emt 0:00:11]} 25. Rd1 {[%emt 0:00:07]} Bf4+ {[%emt 0:00:04]} 0-1

[Event "32nd Panamerican Youth 2022"]
[Site "Montevideo"]
[Date "2022.06.26"]
[Round "1.7"]
[White "Carvajal Mendoza, Maria Belen"]
[Black "Barrientos Mamani, Andrea"]
[Result "1-0"]
[ECO "D52"]
[WhiteElo "1377"]
[BlackElo "1209"]
[Annotator "NA RC"]
[PlyCount "43"]
[EventDate "2022.06.26"]
[EventType "swiss"]
[EventCountry "URU"]
[SourceTitle "playchess.com"]
[Source "ChessBase"]
[SourceQuality "1"]
[TimeControl "5400+30"]

1. d4 {[%emt 0:00:03]} d5 {[%emt 0:00:58]} 2. c4 {[%emt 0:00:39]} Nf6 {[%emt 0:01:09]} 3. Nc3 {[%emt 0:00:06]} e6 {[%emt 0:02:02]} 4. Bg5 {[%emt 0:00:20]} Nbd7 {[%emt 0:02:28]} 5. e3 {[%emt 0:03:08]} c6 {[%emt 0:04:02]} 6. Nf3 {[%emt 0:00:16]} Be7 {[%emt 0:02:22]} 7. Qc2 h6 {[%emt 0:07:51]} 8. Bh4 {[%emt 0:03:15]} b6 {[%emt 0:06:31]} 9. Rd1 {[%emt 0:01:23]} Bb7 {[%emt 0:01:49]} 10. a3 {[%emt 0:00:48]} c5 {[%emt 0:12:32]} 11. Be2 {[%emt 0:13:49]} Rc8 {[%emt 0:05:12]} 12. cxd5 {[%emt 0:10:23]} Nxd5 {[%emt 0:03:00]} 13. Bxe7 {[%emt 0:00:29]} Qxe7 {[%emt 0:01:48]} 14. Nxd5 {[%emt 0:07:47]} Bxd5 {[%emt 0:01:59]} 15. O-O {[%emt 0:00:41]} O-O {[%emt 0:01:43]} 16. Qa4 {[%emt 0:02:10]} Nf6 {[%emt 0:10:46]} 17. Rc1 {[%emt 0:12:52]} cxd4 {[%emt 0:06:40]} 18. Nxd4 {[%emt 0:00:31]} Nh7 {[%emt 0:09:13]} 19. Rfd1 {[%emt 0:02:58]} e5 {[%emt 0:09:49]} 20. Nf3 {[%emt 0:08:29]} Rxc1 {[%emt 0:04:48]} 21. Rxc1 {[%emt 0:00:29]} Ng5 {[%emt 0:02:01]} 22. Nd2 1-0

[Event "32nd Panamerican Youth 2022"]
[Site "Montevideo"]
[Date "2022.06.26"]
[Round "1.12"]
[White "Mane, Arnav"]
[Black "Garzon Camelo, Andres Santiago"]
[Result "0-1"]
[ECO "B52"]
[WhiteElo "1203"]
[BlackElo "1741"]
[Annotator "NA RC"]
[PlyCount "58"]
[EventDate "2022.06.26"]
[EventType "swiss"]
[EventCountry "URU"]
[SourceTitle "playchess.com"]
[Source "ChessBase"]
[SourceQuality "1"]
[TimeControl "5400+30"]

1. e4 c5 2. Nf3 d6 3. Bb5+ Bd7 4. Bxd7+ Nxd7 5. O-O Ngf6 6. Re1 e6 7. c3 Be7 8. d3 h6 9. Be3 O-O 10. h3 d5 11. e5 Nh7 12. Qd2 f5 13. exf6 Bxf6 14. Bf4 Re8 15. Na3 e5 16. Bg3 a6 17. Nc2 Ng5 18. Nxg5 Bxg5 19. Qd1 Kh8 20. Ne3 Nb6 21. Ng4 Nd7 22. Bxe5 h5 23. Bxg7+ Kxg7 24. Ne3 Bxe3 25. fxe3 Qg5 26. Qc1 Ne5 27. Qd1 Rf8 28. Kh1 Rf7 29. Rg1 Qg3 0-1

[Event "32nd Panamerican Youth 2022"]
[Site "Montevideo"]
[Date "2022.06.26"]
[Round "1.13"]
[White "Adam, Ernestina"]
[Black "Zhong, April Yunwei"]
[Result "1-0"]
[ECO "B90"]
[WhiteElo "1681"]
[BlackElo "1392"]
[Annotator "NA RC"]
[PlyCount "45"]
[EventDate "2022.06.26"]
[EventType "swiss"]
[EventCountry "URU"]
[SourceTitle "playchess.com"]
[Source "ChessBase"]
[SourceQuality "1"]
[TimeControl "5400+30"]

1. e4 {[%emt 0:00:07]} c5 {[%emt 0:00:17]} 2. Nf3 {[%emt 0:00:09]} d6 {[%emt 0:00:20]} 3. d4 {[%emt 0:00:09]} cxd4 {[%emt 0:00:27]} 4. Nxd4 {[%emt 0:00:45]} Nf6 {[%emt 0:00:38]} 5. Nc3 {[%emt 0:00:10]} a6 {[%emt 0:00:39]} 6. f3 {[%emt 0:01:33]} e6 {[%emt 0:00:42]} 7. Be3 {[%emt 0:01:21]} Nbd7 {[%emt 0:01:37]} 8. g4 {[%emt 0:02:25]} h6 {[%emt 0:02:36]} 9. Qd2 {[%emt 0:02:44]} b5 10. O-O-O {[%emt 0:06:36]} Bb7 {[%emt 0:08:08]} 11. h4 {[%emt 0:04:31]} Nb6 {[%emt 0:14:29]} 12. Bd3 {[%emt 0:08:00]} Nfd7 {[%emt 0:24:54]} 13. g5 {[%emt 0:13:01]} d5 {[%emt 0:18:13]} 14. exd5 {[%emt 0:10:48]} Nxd5 {[%emt 0:01:21]} 15. g6 {[%emt 0:04:00]} Bc5 {[%emt 0:14:32]} 16. gxf7+ {[%emt 0:07:17]} Kxf7 {[%emt 0:00:47]} 17. Ne4 {[%emt 0:16:13]} Nxe3 {[%emt 0:04:33]} 18. Qxe3 {[%emt 0:00:08]} Bxe4 {[%emt 0:01:27]} 19. Bxe4 {[%emt 0:03:01]} Rc8 {[%emt 0:00:29]} 20. Rhg1 {[%emt 0:03:54]} Bxd4 {[%emt 0:01:09]} 21. Bg6+ {[%emt 0:00:27]} Ke7 {[%emt 0:00:30]} 22. Qxd4 {[%emt 0:00:08]} e5 {[%emt 0:03:00]} 23. Qd6# 1-0

[Event "32nd Panamerican Youth 2022"]
[Site "Montevideo"]
[Date "2022.06.26"]
[Round "1.14"]
[White "Acuna Alarcon, Claudia Micaela"]
[Black "Da Cunha, Gabriela Goes"]
[Result "1/2-1/2"]
[ECO "A50"]
[WhiteElo "1359"]
[BlackElo "1726"]
[Annotator "NA RC"]
[PlyCount "39"]
[EventDate "2022.06.26"]
[EventType "swiss"]
[EventCountry "URU"]
[SourceTitle "playchess.com"]
[Source "ChessBase"]
[SourceQuality "1"]
[TimeControl "5400+30"]

1. d4 {[%emt 0:00:05]} Nf6 {[%emt 0:00:47]} 2. c4 {[%emt 0:00:48]} g6 {[%emt 0:00:19]} 3. Qc2 {[%emt 0:00:35]} d5 4. cxd5 {[%emt 0:03:44]} Nxd5 {[%emt 0:19:20]} 5. e4 {[%emt 0:01:24]} Nb6 {[%emt 0:01:28]} 6. Nf3 {[%emt 0:03:24]} Bg7 {[%emt 0:08:12]} 7. Be3 {[%emt 0:01:33]} O-O {[%emt 0:04:31]} 8. Be2 {[%emt 0:17:07]} Bg4 {[%emt 0:24:00]} 9. Nbd2 {[%emt 0:06:21]} e5 {[%emt 0:07:13]} 10. dxe5 {[%emt 0:04:16]} Nc6 {[%emt 0:01:32]} 11. h3 {[%emt 0:01:38]} Bxf3 {[%emt 0:01:35]} 12. Nxf3 {[%emt 0:00:13]} Nxe5 {[%emt 0:06:05]} 13. O-O {[%emt 0:05:10]} Re8 14. Rfd1 Qe7 {[%emt 0:04:40]} 15. Bc5 {[%emt 0:02:09]} Qe6 {[%emt 0:10:52]} 16. Nd4 {[%emt 0:06:22]} Qf6 17. Nb5 Qc6 {[%emt 0:04:08]} 18. Nd4 {[%emt 0:01:21]} Qf6 19. Nb5 Qc6 {[%emt 0:00:17]} 20. Nd4 {[%emt 0:00:13]} 1/2-1/2

[Event "32nd Panamerican Youth 2022"]
[Site "Montevideo"]
[Date "2022.06.26"]
[Round "1.15"]
[White "Chen, Rachel Ruoxuan"]
[Black "Villegas Ampuero, Consuelo"]
[Result "1-0"]
[ECO "B46"]
[WhiteElo "1618"]
[BlackElo "1333"]
[Annotator "NA RC"]
[PlyCount "147"]
[EventDate "2022.06.26"]
[EventType "swiss"]
[EventCountry "URU"]
[SourceTitle "playchess.com"]
[Source "ChessBase"]
[SourceQuality "1"]
[TimeControl "5400+30"]

1. e4 {[%emt 0:00:02]} c5 {[%emt 0:00:11]} 2. Nf3 {[%emt 0:00:03]} e6 {[%emt 0:00:17]} 3. d4 {[%emt 0:00:04]} cxd4 {[%emt 0:00:07]} 4. Nxd4 {[%emt 0:00:02]} Nc6 {[%emt 0:00:14]} 5. Nc3 {[%emt 0:00:05]} a6 {[%emt 0:05:11]} 6. Nxc6 {[%emt 0:00:07]} bxc6 {[%emt 0:00:07]} 7. Bd3 {[%emt 0:00:04]} Qc7 {[%emt 0:01:28]} 8. O-O {[%emt 0:02:19]} Nf6 {[%emt 0:01:49]} 9. Re1 {[%emt 0:03:07]} d5 10. e5 {[%emt 0:06:56]} Nd7 {[%emt 0:08:52]} 11. Qh5 {[%emt 0:01:46]} g6 {[%emt 0:14:19]} 12. Qg5 {[%emt 0:00:30]} Bc5 {[%emt 0:06:22]} 13. Qh4 {[%emt 0:08:01]} Qa7 14. Bh6 {[%emt 0:02:49]} Rg8 {[%emt 0:23:10]} 15. Na4 {[%emt 0:17:24]} Be7 {[%emt 0:00:37]} 16. Qh3 {[%emt 0:08:40]} Qd4 {[%emt 0:03:46]} 17. b3 {[%emt 0:06:49]} Nxe5 {[%emt 0:07:44]} 18. Bf1 {[%emt 0:07:23]} Ng4 {[%emt 0:04:04]} 19. Be3 {[%emt 0:00:19]} Nxe3 {[%emt 0:00:41]} 20. fxe3 {[%emt 0:00:07]} Qa7 {[%emt 0:00:36]} 21. Qxh7 {[%emt 0:01:33]} Rf8 {[%emt 0:00:10]} 22. Qg7 {[%emt 0:04:36]} Bg5 {[%emt 0:02:07]} 23. Qd4 {[%emt 0:00:46]} Qxd4 {[%emt 0:03:09]} 24. exd4 {[%emt 0:00:03]} Ra7 {[%emt 0:02:02]} 25. Bd3 {[%emt 0:05:16]} Rh8 {[%emt 0:00:46]} 26. c3 {[%emt 0:01:12]} Bf4 {[%emt 0:01:11]} 27. g3 {[%emt 0:02:34]} Bd6 {[%emt 0:01:07]} 28. c4 {[%emt 0:03:09]} Rh5 {[%emt 0:04:02]} 29. Rac1 {[%emt 0:00:50]} Rc7 {[%emt 0:01:11]} 30. cxd5 {[%emt 0:09:33]} Rxd5 {[%emt 0:00:31]} 31. Rc4 c5 {[%emt 0:00:13]} 32. dxc5 {[%emt 0:01:50]} Bxc5+ {[%emt 0:00:07]} 33. Nxc5 {[%emt 0:00:04]} Rcxc5 {[%emt 0:00:16]} 34. Rxc5 {[%emt 0:00:47]} Rxc5 {[%emt 0:00:05]} 35. Rd1 {[%emt 0:00:51]} Rd5 {[%emt 0:00:37]} 36. Kf2 {[%emt 0:00:21]} Kd7 {[%emt 0:00:42]} 37. Ke3 {[%emt 0:00:25]} Bb7 {[%emt 0:00:55]} 38. Be2 {[%emt 0:01:28]} Rxd1 {[%emt 0:00:05]} 39. Bxd1 {[%emt 0:00:02]} e5 {[%emt 0:00:46]} 40. Be2 {[%emt 0:01:10]} Kd6 {[%emt 0:01:02]} 41. b4 {[%emt 0:00:42]} f5 {[%emt 0:00:53]} 42. h4 {[%emt 0:00:42]} Kc7 {[%emt 0:02:16]} 43. Bc4 {[%emt 0:00:16]} Kd6 {[%emt 0:00:54]} 44. Bf7 {[%emt 0:00:18]} Be4 {[%emt 0:01:27]} 45. Bxg6 {[%emt 0:00:23]} Kd5 {[%emt 0:01:33]} 46. Bf7+ {[%emt 0:00:28]} Kc6 {[%emt 0:00:33]} 47. Bc4 {[%emt 0:00:11]} Bb1 {[%emt 0:00:35]} 48. h5 {[%emt 0:00:47]} Kb6 {[%emt 0:01:07]} 49. a3 {[%emt 0:00:44]} a5 {[%emt 0:00:10]} 50. bxa5+ {[%emt 0:00:31]} Kxa5 51. Bd3 {[%emt 0:00:12]} f4+ {[%emt 0:00:23]} 52. gxf4 {[%emt 0:00:50]} exf4+ {[%emt 0:00:01]} 53. Kd2 {[%emt 0:00:30]} Ba2 {[%emt 0:00:33]} 54. h6 {[%emt 0:00:34]} Bg8 {[%emt 0:00:07]} 55. Bc2 {[%emt 0:00:33]} Kb5 {[%emt 0:00:58]} 56. Ke2 {[%emt 0:01:05]} Kc5 {[%emt 0:01:48]} 57. h7 {[%emt 0:00:55]} Bxh7 {[%emt 0:00:01]} 58. Bxh7 {[%emt 0:00:04]} Kc4 {[%emt 0:00:28]} 59. Bc2 {[%emt 0:00:05]} Kb5 {[%emt 0:00:52]} 60. a4+ {[%emt 0:00:10]} Ka5 {[%emt 0:00:01]} 61. Kf3 {[%emt 0:00:04]} Kb4 {[%emt 0:01:10]} 62. Kxf4 {[%emt 0:00:04]} Ka5 {[%emt 0:00:10]} 63. Ke5 {[%emt 0:00:04]} Ka6 {[%emt 0:00:29]} 64. Kd5 {[%emt 0:00:04]} Ka5 {[%emt 0:00:06]} 65. Kc5 {[%emt 0:00:04]} Ka6 {[%emt 0:00:08]} 66. Kb4 {[%emt 0:00:04]} Kb6 {[%emt 0:00:04]} 67. a5+ {[%emt 0:00:02]} Ka6 {[%emt 0:00:48]} 68. Bd3+ {[%emt 0:00:04]} Ka7 {[%emt 0:00:05]} 69. Kb5 {[%emt 0:00:04]} Kb7 {[%emt 0:00:17]} 70. a6+ {[%emt 0:00:03]} Ka7 {[%emt 0:00:57]} 71. Ka5 {[%emt 0:00:03]} Ka8 {[%emt 0:00:06]} 72. Kb6 {[%emt 0:00:04]} Kb8 {[%emt 0:00:26]} 73. a7+ {[%emt 0:00:02]} Ka8 {[%emt 0:00:02]} 74. Be4# {[%emt 0:00:03]} 1-0

[Event "32nd Panamerican Youth 2022"]
[Site "Montevideo"]
[Date "2022.06.26"]
[Round "1.17"]
[White "Ticona Rocabado, Licael Roderick"]
[Black "Amarilla Ettiene, Ezequiel"]
[Result "1-0"]
[ECO "E66"]
[WhiteElo "2097"]
[BlackElo "1427"]
[Annotator "RC"]
[PlyCount "67"]
[EventDate "2022.06.26"]
[EventType "swiss"]
[EventCountry "URU"]
[SourceTitle "playchess.com"]
[Source "ChessBase"]
[SourceQuality "1"]
[TimeControl "5400+30"]

1. Nf3 Nf6 2. g3 g6 3. Bg2 Bg7 4. O-O O-O 5. d4 d6 6. c4 c5 7. Nc3 Nc6 8. d5 Na5 9. Qd3 e5 10. e4 Nd7 11. Bd2 a6 12. Ne2 b5 13. b3 f5 14. Ng5 Nf6 15. Rad1 fxe4 16. Nxe4 Nxe4 17. Bxe4 Bh3 18. Rfe1 b4 19. f4 Qd7 20. fxe5 Bxe5 21. Bh6 Rf7 22. Nf4 Qg4 23. Bf3 Qf5 24. Qe2 g5 25. Nxh3 Qxh3 26. Bxg5 Bxg3 27. Bg4 Bxh2+ 28. Kh1 Qg3 29. Be6 Raf8 30. Qxh2 Qf3+ 31. Kg1 Kh8 32. Bxf7 Rxf7 33. Re8+ Kg7 34. Qh6# 1-0

[Event "32nd Panamerican Youth 2022"]
[Site "Montevideo"]
[Date "2022.06.26"]
[Round "1.18"]
[White "Diaz Bermudez, Pedro Teofilo"]
[Black "Zacarias Rodriguez, Santiago"]
[Result "0-1"]
[ECO "A56"]
[WhiteElo "1336"]
[BlackElo "2069"]
[Annotator "RC"]
[PlyCount "116"]
[EventDate "2022.06.26"]
[EventType "swiss"]
[EventCountry "URU"]
[SourceTitle "playchess.com"]
[Source "ChessBase"]
[SourceQuality "1"]
[TimeControl "5400+30"]

1. d4 {[%emt 0:00:09]} Nf6 {[%emt 0:00:09]} 2. c4 {[%emt 0:00:26]} c5 {[%emt 0:00:06]} 3. Nf3 {[%emt 0:04:06]} g6 {[%emt 0:01:14]} 4. Nc3 {[%emt 0:02:48]} Bg7 {[%emt 0:01:49]} 5. e4 {[%emt 0:01:49]} cxd4 {[%emt 0:04:38]} 6. Nxd4 {[%emt 0:00:10]} d6 {[%emt 0:00:19]} 7. f3 Nc6 {[%emt 0:05:04]} 8. Be3 {[%emt 0:06:15]} O-O {[%emt 0:02:22]} 9. Qd2 {[%emt 0:02:33]} Nxd4 {[%emt 0:10:47]} 10. Bxd4 {[%emt 0:00:20]} Be6 {[%emt 0:00:44]} 11. Nd5 {[%emt 0:01:38]} Bxd5 {[%emt 0:03:53]} 12. cxd5 {[%emt 0:00:25]} Nd7 {[%emt 0:03:56]} 13. Bxg7 {[%emt 0:02:07]} Kxg7 {[%emt 0:00:02]} 14. Qd4+ {[%emt 0:00:14]} Kg8 {[%emt 0:00:07]} 15. Be2 {[%emt 0:00:51]} Qa5+ {[%emt 0:05:24]} 16. Qd2 {[%emt 0:01:29]} Qb6 {[%emt 0:00:49]} 17. h4 {[%emt 0:15:49]} Rfc8 {[%emt 0:07:21]} 18. h5 {[%emt 0:01:33]} Rc7 {[%emt 0:01:36]} 19. hxg6 {[%emt 0:00:17]} fxg6 {[%emt 0:00:02]} 20. Bd3 Ne5 {[%emt 0:04:59]} 21. Ke2 {[%emt 0:03:09]} Nxd3 {[%emt 0:20:42]} 22. Kxd3 {[%emt 0:00:46]} Qb5+ {[%emt 0:00:48]} 23. Ke3 {[%emt 0:00:53]} Rc4 {[%emt 0:00:38]} 24. Rac1 {[%emt 0:07:59]} Rac8 {[%emt 0:00:22]} 25. Rxc4 {[%emt 0:00:31]} Rxc4 {[%emt 0:00:01]} 26. Kf4 {[%emt 0:01:39]} Qc5 {[%emt 0:01:48]} 27. Qe1 Qxd5 {[%emt 0:02:46]} 28. Qh4 {[%emt 0:13:03]} Qf7+ 29. Kg3 {[%emt 0:09:07]} Rc5 {[%emt 0:04:37]} 30. Qh6 {[%emt 0:03:31]} Rc2 {[%emt 0:01:02]} 31. Rc1 {[%emt 0:00:45]} Rc6 {[%emt 0:03:37]} 32. a3 {[%emt 0:01:18]} Qg7 {[%emt 0:02:00]} 33. Qd2 {[%emt 0:01:53]} Qe5+ {[%emt 0:00:32]} 34. Kf2 {[%emt 0:00:23]} Rxc1 {[%emt 0:04:56]} 35. Qxc1 {[%emt 0:00:11]} Kg7 {[%emt 0:00:21]} 36. Qd2 {[%emt 0:04:47]} h5 {[%emt 0:01:45]} 37. Ke3 {[%emt 0:01:34]} Qg5+ {[%emt 0:00:27]} 38. f4 {[%emt 0:00:56]} Qg3+ {[%emt 0:00:03]} 39. Kd4 {[%emt 0:00:08]} e5+ {[%emt 0:02:05]} 40. Kd5 {[%emt 0:02:42]} exf4 {[%emt 0:00:14]} 41. Qd4+ {[%emt 0:00:45]} Kh7 {[%emt 0:00:02]} 42. Ke6 {[%emt 0:02:12]} Qe3 {[%emt 0:01:02]} 43. Qd5 {[%emt 0:01:20]} Qb6 {[%emt 0:02:04]} 44. Qxd6 {[%emt 0:00:59]} h4 {[%emt 0:00:53]} 45. Qxb6 {[%emt 0:00:30]} axb6 {[%emt 0:00:02]} 46. e5 {[%emt 0:00:06]} h3 {[%emt 0:00:30]} 47. gxh3 {[%emt 0:00:07]} f3 {[%emt 0:00:06]} 48. Kd7 {[%emt 0:00:06]} f2 {[%emt 0:00:05]} 49. e6 {[%emt 0:00:05]} f1=Q {[%emt 0:00:06]} 50. e7 {[%emt 0:00:02]} Qxh3+ {[%emt 0:00:21]} 51. Kd8 {[%emt 0:00:09]} Qd3+ {[%emt 0:00:19]} 52. Kc7 {[%emt 0:00:09]} Qe4 {[%emt 0:00:09]} 53. Kd8 {[%emt 0:00:03]} Qd5+ {[%emt 0:00:04]} 54. Kc7 {[%emt 0:00:14]} Qe6 {[%emt 0:00:06]} 55. Kd8 {[%emt 0:00:04]} Qd6+ {[%emt 0:00:03]} 56. Ke8 {[%emt 0:00:07]} Kg7 {[%emt 0:00:06]} 57. b4 {[%emt 0:00:07]} Kf6 {[%emt 0:00:05]} 58. a4 {[%emt 0:00:03]} Qxe7# {[%emt 0:00:03]} 0-1